fUSD/lending_fUSD_20250101
["ID","MTS","AMOUNT","RATE_DAILY","PERIOD"]
[347325925,1735691445755,-500.0,0.00011281,2]
[347325926,1735691445765,-500.0,0.00011281,2]
[347325927,1735691445774,-500.0,0.00011281,2]
[347325928,1735691445784,-493.8488667,0.00011281,2]
[347325929,1735691445793,-504.82282155,0.00011281,2]
[347325930,1735691445803,-500.0,0.00011281,2]
[347325931,1735691445812,-500.0,0.00011281,2]
[347325932,1735691445822,-582.1013636,0.00011281,2]
[347325933,1735691445831,-500.0,0.00011281,2]
[347325934,1735691445840,-500.0,0.00011281,2]
[347325935,1735691445849,-1815.21,0.00011281,2]
[347325936,1735691445858,-500.0,0.00011281,2]
[347325937,1735691445867,-500.0,0.00011281,2]
[347325938,1735691445877,-500.0,0.00011281,2]
[347325939,1735691445886,-500.0,0.00011281,2]
[347325940,1735691445895,-500.0,0.00011281,2]
[347325941,1735691445904,-702.89,0.00011281,2]
[347325942,1735691445915,-500.0,0.00011281,2]
[347325943,1735691445924,-1232.58,0.00011281,2]
[347325944,1735691445933,-500.0,0.00011281,2]
[347325945,1735691445942,-500.0,0.00011281,2]
[347325946,1735691445952,-500.0,0.00011281,2]
[347325947,1735691445961,-500.0,0.00011281,2]
[347325948,1735691445972,-1657.77,0.00011281,2]
[347325949,1735691445982,-151.0,0.00011281,2]
[347325950,1735691445991,-151.0,0.00011281,2]
[347325951,1735691446001,-151.0,0.00011281,2]
[347325952,1735691446010,-500.0,0.00011281,2]
[347325953,1735691446020,-655.59,0.00011281,2]
[347325954,1735691446030,-500.0,0.00011281,2]
[347325956,1735691446039,-500.0,0.00011281,2]
[347325958,1735691446049,-318.76746754,0.00011281,2]
[347325960,1735691446059,-642.37,0.00011281,2]
[347325962,1735691446070,-500.0,0.00011281,2]
[347325964,1735691446079,-500.0,0.00011281,2]
[347325966,1735691446088,-500.0,0.00011281,2]
[347325968,1735691446098,-238.33099121,0.00011281,2]
[347325970,1735691446107,-500.0,0.00011281,2]
[347325972,1735691446116,-503.98,0.00011281,2]
[347325974,1735691446126,-500.0,0.00011281,2]
[347325976,1735691446135,-500.0,0.00011281,2]
[347325978,1735691446144,-500.0,0.00011281,2]
[347325980,1735691446154,-500.0,0.00011281,2]
[347325982,1735691446163,-500.0,0.00011281,2]
[347325984,1735691446173,-1553.3,0.00011281,2]
[347325986,1735691446182,-1416.05,0.00011281,2]
[347325988,1735691446191,-500.0,0.00011281,2]
[347325990,1735691446201,-500.0,0.00011281,2]
[347325992,1735691446210,-537.26,0.00011281,2]
[347325994,1735691446219,-838.8,0.00011281,2]
[347325996,1735691446229,-500.0,0.00011281,2]
[347325998,1735691446238,-500.0,0.00011281,2]
[347326000,1735691446248,-500.0,0.00011281,2]
[347326003,1735691446257,-500.0,0.00011281,2]
[347326005,1735691446267,-500.0,0.00011281,2]
[347326007,1735691446276,-500.0,0.00011281,2]
[347326009,1735691446285,-604.86107192,0.00011281,2]
[347326011,1735691446295,-1339.61,0.00011281,2]
[347326013,1735691446305,-500.0,0.00011281,2]
[347326014,1735691446315,-500.0,0.00011281,2]
[347326015,1735691446327,-500.0,0.00011281,2]
[347326016,1735691446336,-500.0,0.00011281,2]
[347326017,1735691446345,-500.0,0.00011281,2]
[347326018,1735691446355,-500.0,0.00011281,2]
[347326019,1735691446364,-500.0,0.00011281,2]
[347326020,1735691446375,-500.0,0.00011281,2]
[347326021,1735691446384,-1090.34,0.00011281,2]
[347326022,1735691446394,-500.0,0.00011281,2]
[347326023,1735691446404,-3465.69,0.00011281,2]
[347326024,1735691446415,-1377.56,0.00011281,2]
[347326025,1735691446425,-500.0,0.00011281,2]
[347326026,1735691446434,-500.0,0.00011281,2]
[347326027,1735691446444,-500.0,0.00011281,2]
[347326028,1735691446454,-1076.54,0.00011281,2]
[347326029,1735691446463,-500.0,0.00011281,2]
[347326030,1735691446472,-500.0,0.00011281,2]
[347326031,1735691446482,-980.98,0.00011281,2]
[347326032,1735691446491,-500.0,0.00011281,2]
[347326033,1735691446501,-2412.57,0.00011281,2]
[347326034,1735691446510,-500.0,0.00011281,2]
[347326035,1735691446519,-500.0,0.00011281,2]
[347326036,1735691446528,-612.71,0.00011281,2]
[347326037,1735691446538,-744.74,0.00011281,2]
[347326038,1735691446547,-500.0,0.00011281,2]
[347326039,1735691446556,-3553.71,0.00011281,2]
[347326040,1735691446565,-428.06515649,0.00011281,2]
[347326041,1735691446575,-1883.41,0.00011281,2]
[347326042,1735691446584,-1004.84,0.00011281,2]
[347326043,1735691446594,-500.0,0.00011281,2]
[347326044,1735691446603,-500.0,0.00011281,2]
[347326045,1735691446613,-654.55,0.00011281,2]
[347326046,1735691446623,-500.0,0.00011281,2]
[347326047,1735691446632,-896.77,0.00011281,2]
[347326048,1735691446641,-1963.03,0.00011281,2]
[347326049,1735691446651,-500.0,0.00011281,2]
[347326050,1735691446660,-500.0,0.00011281,2]
[347326051,1735691446671,-500.0,0.00011281,2]
[347326052,1735691446680,-500.0,0.00011281,2]
[347326053,1735691446690,-500.0,0.00011281,2]
[347326054,1735691446699,-1240.69,0.00011281,2]
[347326055,1735691446709,-500.0,0.00011281,2]
[347326056,1735691446719,-2564.56,0.00011281,2]
[347326057,1735691446728,-500.0,0.00011281,2]
[347326058,1735691446738,-427.66692279,0.00011281,2]
[347326059,1735691446747,-500.0,0.00011281,2]
[347326060,1735691446757,-2236.73,0.00011281,2]
[347326061,1735691446767,-500.0,0.00011281,2]
[347326062,1735691446776,-631.58,0.00011281,2]
[347326063,1735691446785,-500.0,0.00011281,2]
[347326064,1735691446795,-747.76,0.00011281,2]
[347326065,1735691446804,-500.0,0.00011281,2]
[347326066,1735691446814,-1320.68,0.00011281,2]
[347326067,1735691446823,-500.0,0.00011281,2]
[347326068,1735691446833,-500.0,0.00011281,2]
[347326069,1735691446842,-500.0,0.00011281,2]
[347326070,1735691446851,-500.0,0.00011281,2]
[347326071,1735691446862,-2000.0,0.00011281,2]
[347326072,1735691446871,-1070.48,0.00011281,2]
[347326073,1735691446881,-500.0,0.00011281,2]
[347326074,1735691446891,-200.0,0.00011281,2]
[347326075,1735691446900,-500.0,0.00011281,2]
[347326076,1735691446910,-500.0,0.00011281,2]
[347326077,1735691446922,-500.0,0.00011281,2]
[347326078,1735691446931,-3354.95,0.00011281,2]
[347326079,1735691446941,-500.0,0.00011281,2]
[347326080,1735691446950,-500.0,0.00011281,2]
[347326081,1735691446960,-2359.59,0.00011281,2]
[347326082,1735691446969,-813.76,0.00011281,2]
[347326083,1735691446979,-741.84,0.00011281,2]
[347326084,1735691446989,-887.51,0.00011281,2]
[347326085,1735691446999,-300.0,0.00011281,2]
[347326086,1735691447008,-1803.71,0.00011281,2]
[347326087,1735691447018,-500.0,0.00011281,2]
[347326088,1735691447028,-500.0,0.00011281,2]
[347326089,1735691447037,-500.0,0.00011281,2]
[347326090,1735691447047,-2084.7,0.00011281,2]
[347326091,1735691447056,-500.0,0.00011281,2]
[347326092,1735691447066,-1909.36,0.00011281,2]
[347326093,1735691447075,-744.5,0.00011281,2]
[347326094,1735691447084,-500.0,0.00011281,2]
[347326095,1735691447094,-500.0,0.00011281,2]
[347326096,1735691447104,-500.0,0.00011281,2]
[347326097,1735691447113,-500.0,0.00011281,2]
[347326098,1735691447122,-500.0,0.00011281,2]
[347326099,1735691447132,-534.35657133,0.00011281,2]
[347326100,1735691447141,-500.0,0.00011281,2]
[347326101,1735691447150,-500.0,0.00011281,2]
[347326102,1735691447160,-1904.22,0.00011281,2]
[347326103,1735691447170,-500.0,0.00011281,2]
[347326104,1735691447180,-500.0,0.00011281,2]
[347326105,1735691447190,-500.0,0.00011281,2]
[347326106,1735691447199,-500.0,0.00011281,2]
[347326107,1735691447209,-1685.4,0.00011281,2]
[347326108,1735691447218,-1468.13,0.00011281,2]
[347326109,1735691447228,-500.0,0.00011281,2]
[347326110,1735691447237,-500.0,0.00011281,2]
[347326111,1735691447247,-500.0,0.00011281,2]
[347326112,1735691447256,-184.19312792,0.00011281,2]
[347326113,1735691447266,-6103.96,0.00011281,2]
[347326114,1735691447276,-644.93,0.00011281,2]
[347326115,1735691447285,-9163.06,0.00011281,2]
[347326116,1735691447295,-500.0,0.00011281,2]
[347326117,1735691447304,-742.92,0.00011281,2]
[347326118,1735691447313,-1377.02,0.00011281,2]
[347326119,1735691447327,-1119.35,0.00011281,2]
[347326120,1735691447336,-500.0,0.00011281,2]
[347326121,1735691447345,-500.0,0.00011281,2]
[347326122,1735691447355,-500.0,0.00011281,2]
[347326123,1735691447365,-500.0,0.00011281,2]
[347326124,1735691447375,-1287.57,0.00011281,2]
[347326125,1735691447384,-1788.91,0.00011281,2]
[347326126,1735691447393,-783.88,0.00011281,2]
[347326127,1735691447404,-500.0,0.00011281,2]
[347326128,1735691447414,-500.0,0.00011281,2]
[347326129,1735691447424,-500.0,0.00011281,2]
[347326130,1735691447433,-500.0,0.00011281,2]
[347326131,1735691447443,-500.0,0.00011281,2]
[347326132,1735691447452,-3109.0,0.00011281,2]
[347326133,1735691447461,-17900.04,0.00011281,2]
[347326134,1735691447471,-2514.59,0.00011281,2]
[347326135,1735691447480,-500.0,0.00011281,2]
[347326136,1735691447490,-551.35,0.00011281,2]
[347326137,1735691447499,-500.0,0.00011281,2]
[347326138,1735691447509,-2912.9,0.00011281,2]
[347326139,1735691447518,-157.67526796,0.00011281,2]
[347326140,1735691447527,-500.0,0.00011281,2]
[347326141,1735691447537,-1906.36,0.00011281,2]
[347326142,1735691447546,-3528.97,0.00011281,2]
[347326143,1735691447555,-500.0,0.00011281,2]
[347326144,1735691447564,-500.0,0.00011281,2]
[347326145,1735691447574,-1245.57,0.00011281,2]
[347326146,1735691447583,-2026.25,0.00011281,2]
[347326147,1735691447592,-500.0,0.00011281,2]
[347326148,1735691447602,-500.0,0.00011281,2]
[347326149,1735691447611,-500.0,0.00011281,2]
[347326150,1735691447621,-1173.55,0.00011281,2]
[347326151,1735691447631,-500.0,0.00011281,2]
[347326152,1735691447640,-500.0,0.00011281,2]
[347326153,1735691447650,-2415.73,0.00011281,2]
[347326154,1735691447659,-3362.34,0.00011281,2]
[347326155,1735691447670,-549.58800143,0.00011281,2]
[347326156,1735691447679,-500.0,0.00011281,2]
[347326157,1735691447689,-500.0,0.00011281,2]
[347326158,1735691447699,-3364.94,0.00011281,2]
[347326159,1735691447709,-500.0,0.00011281,2]
[347326160,1735691447719,-500.0,0.00011281,2]
[347326161,1735691447729,-9759.91,0.00011281,2]
[347326162,1735691447739,-620.49,0.00011281,2]
[347326163,1735691447749,-500.0,0.00011281,2]
[347326164,1735691447758,-500.0,0.00011281,2]
[347326165,1735691447768,-500.0,0.00011281,2]
[347326166,1735691447778,-1125.03,0.00011281,2]
[347326167,1735691447787,-500.0,0.00011281,2]
[347326168,1735691447796,-6398.51,0.00011281,2]
[347326169,1735691447806,-500.0,0.00011281,2]
[347326170,1735691447815,-500.0,0.00011281,2]
[347326171,1735691447825,-500.0,0.00011281,2]
[347326172,1735691447834,-517.25,0.00011281,2]
[347326173,1735691447845,-2176.25,0.00011281,2]
[347326174,1735691447854,-5493.35,0.00011281,2]
[347326175,1735691447864,-737.89,0.00011281,2]
[347326176,1735691447874,-500.0,0.00011281,2]
[347326177,1735691447883,-500.0,0.00011281,2]
[347326178,1735691447893,-500.0,0.00011281,2]
[347326179,1735691447904,-1164.76,0.00011281,2]
[347326180,1735691447914,-941.0,0.00011281,2]
[347326181,1735691447923,-500.0,0.00011281,2]
[347326182,1735691447933,-3448.67,0.00011281,2]
[347326183,1735691447942,-500.0,0.00011281,2]
[347326184,1735691447951,-500.0,0.00011281,2]
[347326185,1735691447960,-6017.96,0.00011281,2]
[347326186,1735691447970,-1000.0,0.00011281,2]
[347326187,1735691447979,-1238.04,0.00011281,2]
[347326188,1735691447988,-500.0,0.00011281,2]
[347326189,1735691447997,-500.0,0.00011281,2]
[347326190,1735691448006,-6543.75,0.00011281,2]
[347326191,1735691448016,-1405.46,0.00011281,2]
[347326192,1735691448025,-1197.16,0.00011281,2]
[347326193,1735691448035,-500.0,0.00011281,2]
[347326194,1735691448044,-22574.56,0.00011281,2]
[347326195,1735691448054,-500.0,0.00011281,2]
[347326196,1735691448064,-649.04089431,0.00011281,2]
[347326197,1735691448302,-616.49,0.00011281,2]
[347326198,1735691448312,-1924.09,0.00011281,2]
[347326199,1735691448323,-1114.68,0.00011281,2]
[347326200,1735691448333,-2016.62,0.00011281,2]
[347326201,1735691448342,-2171.34,0.00011281,2]
[347326202,1735691448351,-3374.16,0.00011281,2]
[347326203,1735691448360,-606.02,0.00011281,2]
[347326204,1735691448370,-500.0,0.00011281,2]
[347326205,1735691448379,-793.19,0.00011281,2]
[347326206,1735691448388,-1693.27,0.00011281,2]
[347326207,1735691448397,-500.0,0.00011281,2]
[347326208,1735691448407,-958.39,0.00011281,2]
[347326209,1735691448415,-151.0,0.00011281,2]
[347326210,1735691448425,-152.340503,0.00011281,2]
[347326211,1735691448434,-610.93,0.00011281,2]
[347326212,1735691448443,-1551.91,0.00011281,2]
[347326213,1735691448452,-1076.28,0.00011281,2]
[347326214,1735691448461,-1053.86,0.00011281,2]
[347326215,1735691448470,-1095.13,0.00011281,2]
[347326216,1735691448479,-2288.13,0.00011281,2]
[347326217,1735691448489,-500.0,0.00011281,2]
[347326218,1735691448499,-500.0,0.00011281,2]
[347326219,1735691448508,-736.28,0.00011281,2]
[347326220,1735691448517,-500.0,0.00011281,2]
[347326221,1735691448526,-500.0,0.00011281,2]
[347326222,1735691448535,-500.0,0.00011281,2]
[347326223,1735691448544,-8798.22,0.00011281,2]
[347326224,1735691448553,-2496.73,0.00011281,2]
[347326225,1735691448562,-3096.21,0.00011281,2]
[347326226,1735691448572,-835.93,0.00011281,2]
[347326227,1735691448581,-200.0,0.00011281,2]
[347326228,1735691448590,-500.0,0.00011281,2]
[347326229,1735691448599,-500.0,0.00011281,2]
[347326230,1735691448608,-500.0,0.00011281,2]
[347326231,1735691448617,-1454.51,0.00011281,2]
[347326232,1735691448627,-3459.33,0.00011281,2]
[347326233,1735691448636,-505.9,0.00011281,2]
[347326234,1735691448645,-665.43,0.00011281,2]
[347326235,1735691448654,-500.0,0.00011281,2]
[347326236,1735691448663,-627.72,0.00011281,2]
[347326237,1735691448673,-1183.85,0.00011281,2]
[347326238,1735691448682,-14933.38,0.00011281,2]
[347326239,1735691448691,-500.0,0.00011281,2]
[347326240,1735691448701,-500.0,0.00011281,2]
[347326241,1735691448710,-607.49,0.00011281,2]
[347326242,1735691448720,-5206.39,0.00011281,2]
[347326243,1735691448729,-646.32,0.00011281,2]
[347326244,1735691448739,-645.0,0.00011281,2]
[347326245,1735691448748,-500.0,0.00011281,2]
[347326246,1735691448758,-3703.11,0.00011281,2]
[347326247,1735691448767,-500.0,0.00011281,2]
[347326248,1735691448777,-771.15,0.00011281,2]
[347326249,1735691448786,-1635.63,0.00011281,2]
[347326250,1735691448795,-500.0,0.00011281,2]
[347326251,1735691448805,-528.38,0.00011281,2]
[347326252,1735691448814,-826.35,0.00011281,2]
[347326253,1735691448823,-3243.07,0.00011281,2]
[347326254,1735691448832,-801.4,0.00011281,2]
[347326255,1735691448842,-1174.7,0.00011281,2]
[347326256,1735691448851,-500.0,0.00011281,2]
[347326257,1735691448860,-816.26,0.00011281,2]
[347326258,1735691448870,-500.0,0.00011281,2]
[347326259,1735691448879,-500.0,0.00011281,2]
[347326260,1735691448889,-1085.95,0.00011281,2]
[347326261,1735691448898,-500.0,0.00011281,2]
[347326262,1735691448907,-500.83946491,0.00011281,2]
[347326263,1735691448916,-7838.9,0.00011281,2]
[347326264,1735691448927,-1884.5,0.00011281,2]
[347326265,1735691448936,-3468.05,0.00011281,2]
[347326266,1735691448945,-500.0,0.00011281,2]
[347326267,1735691448954,-588.69,0.00011281,2]
[347326268,1735691448964,-2619.31,0.00011281,2]
[347326269,1735691448973,-500.0,0.00011281,2]
[347326270,1735691448982,-627.58,0.00011281,2]
[347326271,1735691448992,-500.0,0.00011281,2]
[347326272,1735691449001,-3449.69,0.00011281,2]
[347326273,1735691449010,-3444.05,0.00011281,2]
[347326274,1735691449019,-508.88,0.00011281,2]
[347326275,1735691449029,-880.02,0.00011281,2]
[347326276,1735691449039,-500.0,0.00011281,2]
[347326277,1735691449048,-4460.12,0.00011281,2]
[347326278,1735691449057,-500.0,0.00011281,2]
[347326279,1735691449066,-500.0,0.00011281,2]
[347326280,1735691449075,-820.12,0.00011281,2]
[347326281,1735691449085,-410.6585307,0.00011281,2]
[347326282,1735691449094,-1457.23,0.00011281,2]
[347326283,1735691449103,-500.0,0.00011281,2]
[347326284,1735691449112,-500.0,0.00011281,2]
[347326285,1735691449121,-565.98,0.00011281,2]
[347326286,1735691449131,-4255.51,0.00011281,2]
[347326287,1735691449140,-787.36,0.00011281,2]
[347326288,1735691449149,-500.0,0.00011281,2]
[347326289,1735691449159,-2409.84,0.00011281,2]
[347326290,1735691449169,-500.0,0.00011281,7]
[347326291,1735691449178,-500.0,0.00011281,2]
[347326292,1735691449187,-500.0,0.00011281,2]
[347326293,1735691449197,-500.0,0.00011281,2]
[347326294,1735691449206,-2581.26,0.00011281,2]
[347326295,1735691449215,-500.0,0.00011281,2]
[347326296,1735691449224,-5398.13,0.00011281,2]
[347326297,1735691449234,-2583.61,0.00011281,2]
[347326298,1735691449243,-500.0,0.00011281,2]
[347326299,1735691449253,-3738.67,0.00011281,2]
[347326300,1735691449262,-500.0,0.00011281,2]
[347326301,1735691449271,-500.0,0.00011281,2]
[347326302,1735691449281,-500.0,0.00011281,2]
[347326303,1735691449290,-1272.28,0.00011281,2]
[347326304,1735691449299,-404.44376544,0.00011281,2]
[347326305,1735691449308,-2509.87,0.00011281,2]
[347326306,1735691449317,-5642.31,0.00011281,2]
[347326307,1735691449330,-1539.27,0.00011281,2]
[347326308,1735691449339,-500.0,0.00011281,2]
[347326309,1735691449348,-1000.95,0.00011281,2]
[347326310,1735691449357,-17680.92,0.00011281,2]
[347326311,1735691449367,-500.0,0.00011281,2]
[347326312,1735691449378,-2628.3,0.00011281,2]
[347326313,1735691449387,-248.8638194,0.00011281,2]
[347326314,1735691449396,-500.0,0.00011281,2]
[347326315,1735691449405,-329.42163624,0.00011281,2]
[347326316,1735691449415,-500.0,0.00011281,2]
[347326317,1735691449425,-5642.58,0.00011281,2]
[347326318,1735691449434,-2803.71,0.00011281,2]
[347326319,1735691449444,-858.09,0.00011281,2]
[347326320,1735691449453,-2158.54,0.00011281,2]
[347326321,1735691449463,-753.06,0.00011281,2]
[347326322,1735691449472,-500.0,0.00011281,2]
[347326323,1735691449481,-3804.65,0.00011281,2]
[347326324,1735691449491,-1183.06,0.00011281,2]
[347326325,1735691449500,-967.44,0.00011281,2]
[347326326,1735691449510,-6204.78,0.00011281,2]
[347326327,1735691449519,-500.0,0.00011281,2]
[347326328,1735691449529,-1480.22,0.00011281,2]
[347326329,1735691449539,-3835.07,0.00011281,2]
[347326330,1735691449548,-1068.31,0.00011281,2]
[347326331,1735691449557,-500.0,0.00011281,2]
[347326332,1735691449568,-2835.4,0.00011281,2]
[347326333,1735691449579,-1818.29,0.00011281,2]
[347326334,1735691449590,-500.0,0.00011281,2]
[347326335,1735691449599,-749.63,0.00011281,2]
[347326336,1735691449608,-3553.11,0.00011281,2]
[347326337,1735691449618,-687.14,0.00011281,2]
[347326338,1735691449628,-2000.0,0.00011281,2]
[347326339,1735691449638,-200.0,0.00011281,2]
[347326340,1735691449649,-1906.18,0.00011281,2]
[347326341,1735691449658,-500.0,0.00011281,2]
[347326342,1735691449668,-500.0,0.00011281,2]
[347326343,1735691449678,-723.89,0.00011281,2]
[347326344,1735691449688,-511.86,0.00011281,2]
[347326345,1735691449697,-2904.24,0.00011281,2]
[347326346,1735691449707,-3466.15,0.00011281,2]
[347326347,1735691449716,-1054.32,0.00011281,2]
[347326348,1735691449725,-64432.65,0.00011281,2]
[347326349,1735691449734,-500.0,0.00011282,2]
[347326350,1735691449744,-500.0,0.00011282,2]
[347326351,1735691449753,-500.0,0.00011282,2]
[347326352,1735691449762,-539.56,0.00011282,2]
[347326353,1735691449773,-500.0,0.00011282,2]
[347326354,1735691449782,-500.0,0.00011282,2]
[347326355,1735691449791,-500.0,0.00011282,2]
[347326356,1735691449800,-500.0,0.00011282,2]
[347326357,1735691449810,-1713.45,0.00011282,2]
[347326358,1735691449819,-3178.73,0.00011282,2]
[347326359,1735691449828,-1405.59,0.00011282,2]
[347326360,1735691449838,-151.0,0.00011282,2]
[347326361,1735691449847,-151.0,0.00011282,2]
[347326362,1735691449856,-500.0,0.00011282,2]
[347326363,1735691449866,-500.0,0.00011282,2]
[347326364,1735691449876,-611.24,0.00011282,2]
[347326365,1735691449885,-500.0,0.00011282,2]
[347326366,1735691449895,-484.96360481,0.00011282,2]
[347326367,1735691449904,-1651.13,0.00011282,2]
[347326368,1735691449913,-779.36,0.00011282,2]
[347326369,1735691449923,-500.0,0.00011282,2]
[347326370,1735691449932,-1681.15,0.00011282,2]
[347326371,1735691449942,-745.13,0.00011282,2]
[347326372,1735691449951,-1448.93,0.00011282,2]
[347326373,1735691449960,-2297.32,0.00011282,2]
[347326374,1735691449969,-500.0,0.00011282,2]
[347326375,1735691449979,-605.56,0.00011282,2]
[347326376,1735691449989,-500.0,0.00011282,2]
[347326377,1735691449998,-1497.26,0.00011282,2]
[347326378,1735691450007,-1538.21,0.00011282,2]
[347326379,1735691450017,-2838.87,0.00011282,2]
[347326380,1735691450027,-535.85,0.00011282,2]
[347326381,1735691450037,-888.68,0.00011282,2]
[347326382,1735691450046,-500.0,0.00011282,2]
[347326383,1735691450056,-500.0,0.00011282,2]
[347326384,1735691450065,-500.0,0.00011282,2]
[347326385,1735691450074,-754.7,0.00011282,2]
[347326386,1735691450083,-500.0,0.00011282,2]
[347326387,1735691450092,-799.02,0.00011282,2]
[347326388,1735691450101,-1035.4,0.00011282,2]
[347326389,1735691450110,-1382.57,0.00011282,2]
[347326390,1735691450119,-1182.3,0.00011282,2]
[347326391,1735691450128,-2722.78,0.00011282,2]
[347326392,1735691450137,-500.0,0.00011282,2]
[347326393,1735691450147,-500.0,0.00011282,2]
[347326394,1735691450155,-2507.51,0.00011282,2]
[347326395,1735691450164,-1695.42,0.00011282,2]
[347326396,1735691450174,-500.0,0.00011282,2]
[347326397,1735691450183,-500.0,0.00011282,2]
[347326398,1735691450193,-500.0,0.00011282,2]
[347326399,1735691450202,-506.73,0.00011282,2]
[347326400,1735691450211,-500.0,0.00011282,2]
[347326401,1735691450220,-1088.85,0.00011282,2]
[347326402,1735691450230,-500.0,0.00011282,2]
[347326403,1735691450239,-909.03,0.00011282,2]
[347326404,1735691450248,-500.0,0.00011282,2]
[347326405,1735691450258,-1486.89,0.00011282,2]
[347326406,1735691450267,-967.71,0.00011282,2]
[347326407,1735691450276,-740.21,0.00011282,2]
[347326408,1735691450286,-500.0,0.00011282,2]
[347326409,1735691450295,-2416.87,0.00011282,2]
[347326410,1735691450304,-500.0,0.00011282,2]
[347326411,1735691450313,-500.0,0.00011282,2]
[347326412,1735691450325,-522.52,0.00011282,2]
[347326413,1735691450340,-1917.32,0.00011282,2]
[347326414,1735691450350,-1044.99,0.00011282,2]
[347326415,1735691450361,-500.0,0.00011282,2]
[347326416,1735691450372,-2024.21,0.00011282,2]
[347326417,1735691450382,-500.0,0.00011282,2]
[347326418,1735691450391,-500.0,0.00011282,2]
[347326419,1735691450401,-1888.87,0.00011282,2]
[347326420,1735691450410,-623.83,0.00011282,2]
[347326421,1735691450419,-773.82,0.00011282,2]
[347326422,1735691450429,-2423.75,0.00011282,2]
[347326423,1735691450438,-663.69,0.00011282,2]
[347326424,1735691450447,-500.0,0.00011282,2]
[347326425,1735691450456,-1250.74,0.00011282,2]
[347326426,1735691450466,-500.0,0.00011282,2]
[347326427,1735691450475,-500.0,0.00011282,2]
[347326428,1735691450484,-840.08,0.00011282,2]
[347326429,1735691450493,-500.0,0.00011282,2]
[347326430,1735691450503,-500.0,0.00011282,2]
[347326431,1735691450599,-500.0,0.00011282,2]
[347326432,1735691450609,-5022.01,0.00011282,2]
[347326433,1735691450618,-500.0,0.00011282,2]
[347326434,1735691450628,-4004.98,0.00011282,2]
[347326435,1735691450638,-705.45,0.00011282,2]
[347326436,1735691450647,-500.0,0.00011282,2]
[347326437,1735691450657,-1416.97,0.00011282,2]
[347326438,1735691450666,-2465.17,0.00011282,2]
[347326439,1735691450675,-1615.21,0.00011282,2]
[347326440,1735691450684,-500.0,0.00011282,2]
[347326441,1735691450693,-4322.62,0.00011282,2]
[347326442,1735691450702,-500.0,0.00011282,2]
[347326443,1735691450712,-500.0,0.00011282,2]
[347326444,1735691450721,-500.0,0.00011282,2]
[347326445,1735691450730,-1767.45,0.00011282,2]
[347326446,1735691450740,-744.5,0.00011282,2]
[347326447,1735691450749,-5365.19,0.00011282,2]
[347326448,1735691450758,-328.352209,0.00011282,2]
[347326449,1735691450767,-1446.77,0.00011282,2]
[347326450,1735691450776,-5214.12,0.00011282,2]
[347326451,1735691450786,-500.0,0.00011282,2]
[347326452,1735691450795,-784.7,0.00011282,2]
[347326453,1735691450805,-1348.34,0.00011282,2]
[347326454,1735691450814,-500.0,0.00011282,2]